fUSD/lending_fUSD_20250103
["ID","MTS","AMOUNT","RATE_DAILY","PERIOD"]
[347502567,1735887903836,-1887.83,9.552e-05,2]
[347502568,1735887903859,-500.0,9.552e-05,2]
[347502569,1735887903882,-555.94,9.552e-05,2]
[347502570,1735887903904,-1125.94,9.552e-05,2]
[347502571,1735887903927,-500.0,9.552e-05,2]
[347502572,1735887903949,-500.0,9.552e-05,2]
[347502573,1735887903972,-500.0,9.552e-05,2]
[347502574,1735887903994,-632.0,9.552e-05,2]
[347502575,1735887904019,-500.0,9.552e-05,2]
[347502576,1735887904041,-500.0,9.552e-05,2]
[347502577,1735887904065,-1740.24,9.552e-05,2]
[347502578,1735887904089,-500.0,9.552e-05,2]
[347502579,1735887904112,-2917.17,9.552e-05,2]
[347502580,1735887904135,-760.66,9.552e-05,2]
[347502581,1735887904157,-893.69,9.552e-05,2]
[347502582,1735887904184,-500.0,9.552e-05,2]
[347502583,1735887904207,-500.0,9.552e-05,2]
[347502584,1735887904230,-500.0,9.552e-05,2]
[347502585,1735887904256,-4191.89,9.552e-05,2]
[347502586,1735887904280,-2221.92,9.552e-05,2]
[347502587,1735887904304,-8641.52,9.552e-05,2]
[347502588,1735887904326,-500.0,9.552e-05,2]
[347502589,1735887904349,-500.0,9.552e-05,2]
[347502590,1735887904373,-500.0,9.552e-05,2]
[347502591,1735887904396,-500.0,9.552e-05,2]
[347502592,1735887904420,-1014.8,9.552e-05,2]
[347502593,1735887904442,-500.0,9.552e-05,2]
[347502594,1735887904465,-500.0,9.552e-05,2]
[347502595,1735887904488,-1287.47,9.552e-05,2]
[347502596,1735887904514,-500.0,9.552e-05,2]
[347502597,1735887904537,-531.57,9.552e-05,2]
[347502598,1735887904561,-1344.26,9.552e-05,2]
[347502599,1735887904585,-3463.75,9.552e-05,2]
[347502600,1735887904608,-500.0,9.552e-05,2]
[347502601,1735887904631,-1809.33,9.552e-05,2]
[347502602,1735887904653,-270.6864256,9.552e-05,2]
[347502603,1735887904676,-18046.58,9.552e-05,2]
[347502604,1735887904699,-1018.1,9.552e-05,2]
[347502605,1735887904722,-500.0,9.552e-05,2]
[347502606,1735887904754,-500.0,9.552e-05,2]
[347502607,1735887904778,-500.0,9.552e-05,2]
[347502608,1735887904805,-3737.1,9.552e-05,2]
[347502609,1735887904828,-500.0,9.552e-05,2]
[347502610,1735887904852,-12377.96,9.552e-05,2]
[347502611,1735887905085,-553.32,9.552e-05,2]
[347502612,1735887905109,-500.0,9.552e-05,2]
[347502613,1735887905133,-500.0,9.552e-05,2]
[347502614,1735887905157,-6364.64,9.552e-05,2]
[347502615,1735887905182,-500.0,9.552e-05,2]
[347502616,1735887905204,-4850.54,9.552e-05,2]
[347502617,1735887905226,-1270.76,9.552e-05,2]
[347502618,1735887905251,-2746.0,9.552e-05,2]
[347502619,1735887905273,-771.95,9.552e-05,2]
[347502620,1735887905295,-500.0,9.552e-05,2]
[347502621,1735887905316,-930.17,9.552e-05,2]
[347502622,1735887905339,-500.0,9.552e-05,2]
[347502623,1735887905360,-500.0,9.552e-05,2]
[347502624,1735887905383,-3257.9,9.552e-05,2]
[347502625,1735887905405,-500.0,9.552e-05,2]
[347502626,1735887905431,-500.0,9.552e-05,2]
[347502627,1735887905460,-1329.29,9.552e-05,2]
[347502628,1735887905483,-500.0,9.552e-05,2]
[347502629,1735887905505,-500.0,9.552e-05,2]
[347502630,1735887905527,-3139.4,9.552e-05,2]
[347502631,1735887905549,-500.0,9.552e-05,2]
[347502632,1735887905575,-1182.5,9.552e-05,2]
[347502633,1735887905598,-500.0,9.552e-05,2]
[347502634,1735887905620,-500.0,9.552e-05,2]
[347502635,1735887905643,-2307.25,9.552e-05,2]
[347502636,1735887905666,-3410.06,9.552e-05,2]
[347502637,1735887905688,-500.0,9.552e-05,2]
[347502638,1735887905710,-500.0,9.552e-05,2]
[347502639,1735887905733,-802.06,9.552e-05,2]
[347502640,1735887905755,-500.0,9.552e-05,2]
[347502641,1735887905778,-500.0,9.552e-05,2]
[347502642,1735887905800,-1426.34,9.552e-05,2]
[347502643,1735887905822,-1467.85,9.552e-05,2]
[347502644,1735887905844,-500.0,9.552e-05,2]
[347502645,1735887905866,-500.0,9.552e-05,2]
[347502646,1735887905888,-1881.14,9.552e-05,2]
[347502647,1735887905911,-500.0,9.552e-05,2]
[347502648,1735887905935,-1088.21,9.552e-05,2]
[347502649,1735887905958,-500.0,9.552e-05,2]
[347502650,1735887905980,-571.58,9.552e-05,2]
[347502651,1735887906003,-8399.33,9.552e-05,2]
[347502652,1735887906025,-1683.14,9.552e-05,2]
[347502653,1735887906048,-2550.49,9.552e-05,2]
[347502654,1735887906071,-500.0,9.552e-05,2]
[347502655,1735887906096,-10409.45,9.552e-05,2]
[347502656,1735887906118,-500.0,9.552e-05,2]
[347502657,1735887906141,-500.0,9.552e-05,2]
[347502658,1735887906167,-1315.94,9.552e-05,2]
[347502659,1735887906191,-4613.08,9.552e-05,2]
[347502660,1735887906214,-500.0,9.552e-05,2]
[347502661,1735887906238,-1666.8,9.552e-05,2]
[347502662,1735887906263,-500.0,9.552e-05,2]
[347502663,1735887906287,-1937.87,9.552e-05,2]
[347502664,1735887906310,-500.0,9.552e-05,2]
[347502665,1735887906334,-500.0,9.552e-05,2]
[347502666,1735887906362,-500.0,9.552e-05,2]
[347502667,1735887906393,-500.0,9.552e-05,2]
[347502668,1735887906416,-756.57,9.552e-05,2]
[347502669,1735887906439,-500.0,9.552e-05,2]
[347502670,1735887906462,-500.0,9.552e-05,2]
[347502671,1735887906485,-500.0,9.552e-05,2]
[347502672,1735887906508,-273.90274811,9.552e-05,2]
[347502673,1735887906530,-500.0,9.552e-05,2]
[347502674,1735887906553,-3129.38,9.552e-05,2]
[347502675,1735887906576,-500.0,9.552e-05,2]
[347502676,1735887906600,-5457.88,9.552e-05,2]
[347502677,1735887906622,-500.0,9.552e-05,2]
[347502678,1735887906645,-500.0,9.552e-05,2]
[347502679,1735887906668,-500.0,9.552e-05,2]
[347502680,1735887906690,-500.0,9.552e-05,2]
[347502681,1735887906715,-500.0,9.552e-05,2]
[347502682,1735887906738,-500.0,9.552e-05,2]
[347502683,1735887906762,-2347.27,9.552e-05,2]
[347502684,1735887906787,-5789.93,9.552e-05,2]
[347502685,1735887906809,-845.2,9.552e-05,2]
[347502686,1735887906832,-500.0,9.552e-05,2]
[347502687,1735887906855,-500.0,9.552e-05,2]
[347502688,1735887906877,-500.0,9.552e-05,2]
[347502689,1735887906899,-500.0,9.552e-05,2]
[347502690,1735887906921,-500.0,9.552e-05,2]
[347502691,1735887906944,-7785.8,9.552e-05,2]
[347502692,1735887906967,-885.39,9.552e-05,2]
[347502693,1735887906989,-3041.78,9.552e-05,2]
[347502694,1735887907012,-680.49,9.552e-05,2]
[347502695,1735887907034,-500.0,9.552e-05,2]
[347502696,1735887907056,-500.0,9.552e-05,2]
[347502697,1735887907079,-500.0,9.552e-05,2]
[347502698,1735887907102,-500.0,9.552e-05,2]
[347502699,1735887907124,-1388.34,9.552e-05,2]
[347502700,1735887907146,-524.48,9.552e-05,2]
[347502701,1735887907172,-3606.38,9.552e-05,2]
[347502702,1735887907194,-500.0,9.552e-05,2]
[347502703,1735887907217,-241.01696862,9.552e-05,2]
[347502704,1735887907240,-1961.39,9.552e-05,2]
[347502705,1735887907264,-1117.03,9.552e-05,2]
[347502706,1735887907286,-500.0,9.552e-05,2]
[347502707,1735887907309,-554.84,9.552e-05,2]
[347502708,1735887907332,-500.0,9.552e-05,2]
[347502709,1735887907356,-8755.29,9.552e-05,2]
[347502710,1735887907379,-500.0,9.552e-05,2]
[347502711,1735887907401,-4671.13,9.552e-05,2]
[347502712,1735887907424,-1880.49,9.552e-05,2]
[347502713,1735887907450,-1758.09,9.552e-05,2]
[347502714,1735887907471,-500.0,9.552e-05,2]
[347502715,1735887907495,-500.0,9.552e-05,2]
[347502716,1735887907521,-3599.6,9.552e-05,2]
[347502717,1735887907545,-500.0,9.552e-05,2]
[347502718,1735887907569,-598.75,9.552e-05,2]
[347502719,1735887907591,-500.0,9.552e-05,2]
[347502720,1735887907614,-579.64,9.552e-05,2]
[347502721,1735887907636,-4492.41,9.552e-05,2]
[347502722,1735887907659,-2848.32,9.552e-05,2]
[347502723,1735887907682,-549.11,9.552e-05,2]
[347502724,1735887907704,-500.0,9.552e-05,2]
[347502725,1735887907727,-500.0,9.552e-05,2]
[347502726,1735887907751,-7034.44,9.552e-05,2]
[347502727,1735887907775,-500.0,9.552e-05,2]
[347502728,1735887908002,-500.0,9.552e-05,2]
[347502729,1735887908025,-500.0,9.552e-05,2]
[347502730,1735887908048,-354.2187916,9.552e-05,2]
[347502731,1735887908071,-500.0,9.552e-05,2]
[347502732,1735887908094,-500.0,9.552e-05,2]
[347502733,1735887908117,-500.0,9.552e-05,2]
[347502734,1735887908141,-8014.78,9.552e-05,2]
[347502735,1735887908164,-500.0,9.552e-05,2]
[347502736,1735887908190,-537.86,9.552e-05,2]
[347502737,1735887908213,-500.0,9.552e-05,2]
[347502738,1735887908237,-500.0,9.552e-05,2]
[347502739,1735887908259,-3502.73,9.552e-05,2]
[347502740,1735887908282,-500.0,9.552e-05,2]
[347502741,1735887908305,-500.0,9.552e-05,2]
[347502742,1735887908327,-29589.46,9.552e-05,2]
[347502743,1735887908349,-500.0,9.552e-05,2]
[347502744,1735887908372,-500.0,9.552e-05,2]
[347502745,1735887908394,-436.619664,9.552e-05,2]
[347502746,1735887908418,-2114.09,9.552e-05,2]
[347502747,1735887908440,-500.0,9.552e-05,2]
[347502748,1735887908463,-863.31,9.552e-05,2]
[347502749,1735887908485,-657.23,9.552e-05,2]
[347502750,1735887908508,-500.0,9.552e-05,2]
[347502751,1735887908531,-500.0,9.552e-05,2]
[347502752,1735887908553,-608.17,9.552e-05,2]
[347502753,1735887908575,-500.0,9.552e-05,2]
[347502754,1735887908597,-3021.78,9.552e-05,2]
[347502755,1735887908621,-9292.44,9.552e-05,2]
[347502756,1735887908645,-3543.88,9.552e-05,2]
[347502757,1735887908667,-505.77254681,9.552e-05,2]
[347502758,1735887908690,-757.61,9.552e-05,2]
[347502759,1735887908713,-500.0,9.552e-05,2]
[347502760,1735887908736,-540.11,9.552e-05,2]
[347502761,1735887908759,-500.0,9.552e-05,2]
[347502762,1735887908781,-500.0,9.552e-05,2]
[347502763,1735887908804,-1677.78,9.552e-05,2]
[347502764,1735887908827,-500.0,9.552e-05,2]
[347502765,1735887908850,-500.0,9.552e-05,2]
[347502766,1735887908874,-1185.27,9.552e-05,2]
[347502767,1735887908898,-500.0,9.552e-05,2]
[347502768,1735887908921,-1508.45,9.552e-05,2]
[347502769,1735887908944,-500.0,9.552e-05,2]
[347502770,1735887908967,-1222.533143,9.552e-05,2]
[347502771,1735887908990,-1035.89,9.552e-05,2]
[347502772,1735887909015,-3534.73,9.552e-05,2]
[347502773,1735887909038,-500.0,9.552e-05,2]
[347502774,1735887909060,-1131.33,9.552e-05,2]
[347502775,1735887909084,-500.0,9.552e-05,2]
[347502776,1735887909106,-500.0,9.552e-05,2]
[347502777,1735887909130,-500.0,9.552e-05,2]
[347502778,1735887909153,-155.317427,9.552e-05,2]
[347502779,1735887909179,-1081.15,9.552e-05,2]
[347502780,1735887909203,-500.0,9.552e-05,2]
[347502781,1735887909225,-1575.7,9.552e-05,2]
[347502782,1735887909252,-500.0,9.552e-05,2]
[347502783,1735887909275,-500.0,9.552e-05,2]
[347502784,1735887909299,-500.0,9.552e-05,2]
[347502785,1735887909321,-176.570246,9.552e-05,2]
[347502786,1735887909343,-500.0,9.552e-05,2]
[347502787,1735887909365,-500.0,9.552e-05,2]
[347502788,1735887909387,-500.0,9.552e-05,2]
[347502789,1735887909409,-500.0,9.552e-05,2]
[347502790,1735887909431,-542.39,9.552e-05,2]
[347502791,1735887909454,-500.0,9.552e-05,2]
[347502792,1735887909476,-500.0,9.552e-05,2]
[347502793,1735887909498,-500.0,9.552e-05,2]
[347502794,1735887909520,-5600.08,9.552e-05,2]
[347502795,1735887909543,-923.84,9.552e-05,2]
[347502796,1735887909566,-500.0,9.552e-05,2]
[347502797,1735887909588,-500.0,9.552e-05,2]
[347502798,1735887909612,-654.36,9.552e-05,2]
[347502799,1735887909635,-500.0,9.552e-05,2]
[347502800,1735887909659,-2396.76,9.552e-05,2]
[347502801,1735887909684,-500.0,9.552e-05,2]
[347502802,1735887909707,-500.0,9.552e-05,2]
[347502803,1735887909729,-500.0,9.552e-05,2]
[347502804,1735887909753,-2530.73,9.552e-05,2]
[347502805,1735887909776,-500.0,9.552e-05,2]
[347502806,1735887909800,-500.0,9.552e-05,2]
[347502807,1735887909822,-500.0,9.552e-05,2]
[347502808,1735887909846,-1203.29,9.552e-05,2]
[347502809,1735887909869,-500.0,9.552e-05,2]
[347502810,1735887909892,-722.06,9.552e-05,2]
[347502811,1735887909915,-500.0,9.552e-05,2]
[347502812,1735887909939,-500.0,9.552e-05,2]
[347502813,1735887909961,-2542.07,9.552e-05,2]
[347502814,1735887909983,-516.37161911,9.552e-05,2]
[347502815,1735887910009,-500.0,9.552e-05,2]
[347502816,1735887910031,-594.22079597,9.552e-05,2]
[347502817,1735887910053,-500.0,9.552e-05,2]
[347502818,1735887910076,-500.0,9.552e-05,2]
[347502819,1735887910102,-8621.74,9.552e-05,2]
[347502820,1735887910124,-500.0,9.552e-05,2]
[347502821,1735887910148,-1918.38,9.552e-05,2]
[347502822,1735887910174,-500.0,9.552e-05,2]
[347502823,1735887910198,-500.0,9.552e-05,2]
[347502824,1735887910222,-500.0,9.552e-05,2]
[347502825,1735887910246,-500.0,9.552e-05,2]
[347502826,1735887910269,-1367.54,9.552e-05,2]
[347502827,1735887910291,-500.0,9.552e-05,2]
[347502828,1735887910315,-495.61,9.552e-05,2]
[347502829,1735887910341,-505.38,9.552e-05,2]
[347502830,1735887910369,-501.35,9.552e-05,2]
[347502831,1735887910394,-494.56,9.552e-05,2]
[347502832,1735887910426,-498.54,9.552e-05,2]
[347502833,1735887910455,-1769.2492,9.552e-05,2]
[347502834,1735887910479,-500.0,9.553e-05,2]
[347502835,1735887910510,-500.0,9.553e-05,2]
[347502836,1735887910536,-500.0,9.553e-05,2]
[347502837,1735887910559,-1017.91,9.553e-05,2]
[347502838,1735887910582,-311.62531404,9.553e-05,2]
[347502839,1735887910605,-610.7,9.553e-05,2]
[347502840,1735887910627,-500.0,9.553e-05,2]
[347502841,1735887910653,-500.0,9.553e-05,2]
[347502842,1735887910677,-500.0,9.553e-05,2]
[347502843,1735887910700,-984.96,9.553e-05,2]
[347502844,1735887910722,-679.76,9.553e-05,2]
[347502845,1735887910956,-500.0,9.553e-05,2]
[347502846,1735887910981,-1073.64,9.553e-05,2]
[347502847,1735887911006,-1248.21,9.553e-05,2]
[347502848,1735887911029,-671.39,9.553e-05,2]
[347502849,1735887911051,-500.0,9.553e-05,2]
[347502850,1735887911074,-500.0,9.553e-05,2]
[347502851,1735887911097,-500.0,9.553e-05,2]
[347502852,1735887911119,-572.19,9.553e-05,2]
[347502853,1735887911141,-977.08,9.553e-05,2]
[347502854,1735887911165,-500.0,9.553e-05,2]
[347502855,1735887911188,-500.0,9.553e-05,2]
[347502856,1735887911211,-1878.04,9.553e-05,2]
[347502857,1735887911234,-808.45,9.553e-05,2]
[347502858,1735887911258,-500.0,9.553e-05,2]
[347502859,1735887911280,-500.0,9.553e-05,2]
[347502860,1735887911303,-860.37,9.553e-05,2]
[347502861,1735887911325,-500.0,9.553e-05,2]
[347502862,1735887911348,-500.0,9.553e-05,2]
[347502863,1735887911370,-893.94,9.553e-05,2]
[347502864,1735887911393,-500.0,9.553e-05,2]
[347502865,1735887911416,-500.0,9.553e-05,2]
[347502866,1735887911439,-500.0,9.553e-05,2]
[347502867,1735887911461,-500.0,9.553e-05,2]
[347502868,1735887911483,-268.14903174,9.553e-05,2]
[347502869,1735887911505,-1050.76,9.553e-05,2]
[347502870,1735887911528,-500.0,9.553e-05,2]
[347502871,1735887911550,-500.0,9.553e-05,2]
[347502872,1735887911573,-500.0,9.553e-05,2]
[347502873,1735887911597,-500.0,9.553e-05,2]
[347502874,1735887911620,-500.0,9.553e-05,2]
[347502875,1735887911645,-500.0,9.553e-05,2]
[347502876,1735887911669,-500.0,9.553e-05,2]
[347502877,1735887911693,-500.0,9.553e-05,2]
[347502878,1735887911717,-1265.16,9.553e-05,2]
[347502879,1735887911740,-500.0,9.553e-05,2]
[347502880,1735887911763,-500.0,9.553e-05,2]
[347502881,1735887911786,-2034.4,9.553e-05,2]
[347502882,1735887911809,-500.0,9.553e-05,2]
[347502883,1735887911834,-500.0,9.553e-05,2]
[347502884,1735887911857,-500.0,9.553e-05,2]
[347502885,1735887911881,-995.6,9.553e-05,2]
[347502886,1735887911903,-500.0,9.553e-05,2]
[347502887,1735887911926,-500.0,9.553e-05,2]
[347502888,1735887911950,-558.15,9.553e-05,2]
[347502889,1735887911972,-1008.85,9.553e-05,2]
[347502890,1735887911995,-500.0,9.553e-05,2]
[347502891,1735887912019,-500.0,9.553e-05,2]
[347502892,1735887912042,-500.0,9.553e-05,2]
[347502893,1735887912066,-772.93,9.553e-05,2]
[347502894,1735887912092,-500.0,9.553e-05,2]
[347502895,1735887912116,-1148.57,9.553e-05,2]
[347502896,1735887912140,-1005.49,9.553e-05,2]
[347502897,1735887912167,-897.83,9.553e-05,2]
[347502898,1735887912192,-500.0,9.553e-05,2]
[347502899,1735887912218,-500.0,9.553e-05,2]
[347502900,1735887912243,-500.0,9.553e-05,2]
[347502901,1735887912268,-570.46,9.553e-05,2]
[347502902,1735887912290,-500.0,9.553e-05,2]
[347502903,1735887912313,-643.29,9.553e-05,2]
[347502904,1735887912336,-500.0,9.553e-05,2]
[347502905,1735887912359,-500.0,9.553e-05,2]
[347502906,1735887912382,-500.0,9.553e-05,2]
[347502907,1735887912404,-518.54,9.553e-05,2]
[347502908,1735887912427,-500.0,9.553e-05,2]
[347502909,1735887912450,-893.64,9.553e-05,2]
[347502910,1735887912473,-500.0,9.553e-05,2]
[347502911,1735887912496,-500.0,9.553e-05,2]
[347502912,1735887912521,-500.0,9.553e-05,2]
[347502913,1735887912544,-894.52,9.553e-05,2]
[347502914,1735887912568,-1103.44,9.553e-05,2]
[347502915,1735887912590,-500.0,9.553e-05,2]
[347502916,1735887912614,-500.0,9.553e-05,2]
[347502917,1735887912637,-603.38,9.553e-05,2]
[347502918,1735887912661,-500.0,9.553e-05,2]
[347502919,1735887912684,-500.0,9.553e-05,2]
[347502920,1735887912708,-500.0,9.553e-05,2]
[347502921,1735887912732,-2208.14,9.553e-05,2]
[347502922,1735887912757,-500.0,9.553e-05,2]
[347502923,1735887912781,-1516.07,9.553e-05,2]
[347502924,1735887912805,-500.0,9.553e-05,2]
[347502925,1735887912829,-500.0,9.553e-05,2]
[347502926,1735887912853,-500.0,9.553e-05,2]
[347502927,1735887912876,-500.0,9.553e-05,2]
[347502928,1735887912899,-1155.44,9.553e-05,2]
[347502929,1735887912923,-500.0,9.553e-05,2]
[347502930,1735887912947,-500.0,9.553e-05,2]
[347502931,1735887912970,-1164.81,9.553e-05,2]
[347502932,1735887912995,-500.0,9.553e-05,2]
[347502933,1735887913019,-500.0,9.553e-05,2]
[347502934,1735887913042,-1184.0,9.553e-05,2]
[347502935,1735887913068,-500.0,9.553e-05,2]
[347502936,1735887913091,-500.0,9.553e-05,2]
[347502937,1735887913114,-500.0,9.553e-05,2]
[347502938,1735887913138,-597.75,9.553e-05,2]
[347502939,1735887913164,-500.0,9.553e-05,2]
[347502940,1735887913188,-500.0,9.553e-05,2]
[347502941,1735887913210,-500.0,9.553e-05,2]
[347502942,1735887913232,-679.34,9.553e-05,2]
[347502943,1735887913257,-500.0,9.553e-05,2]
[347502944,1735887913280,-500.0,9.553e-05,2]
[347502945,1735887913304,-500.0,9.553e-05,2]
[347502946,1735887913327,-586.6,9.553e-05,2]
[347502947,1735887913350,-500.0,9.553e-05,2]
[347502948,1735887913374,-500.0,9.553e-05,2]
[347502949,1735887913398,-500.0,9.553e-05,2]
[347502950,1735887913421,-500.0,9.553e-05,2]
[347502951,1735887913445,-500.0,9.553e-05,2]
[347502952,1735887913470,-1004.42,9.553e-05,2]
[347502953,1735887913492,-500.0,9.553e-05,2]
[347502954,1735887913516,-2020.94,9.553e-05,2]
[347502955,1735887913538,-500.0,9.553e-05,2]
[347502956,1735887913561,-1289.93,9.553e-05,2]
[347502957,1735887913584,-500.0,9.553e-05,2]
[347502958,1735887913606,-595.37,9.553e-05,2]
[347502959,1735887913629,-500.0,9.553e-05,2]
[347502960,1735887913652,-1079.24,9.553e-05,2]
[347502961,1735887913675,-500.0,9.553e-05,2]
[347502962,1735887913698,-500.0,9.553e-05,2]
[347502963,1735887913720,-500.0,9.553e-05,2]
[347502964,1735887913952,-500.0,9.553e-05,2]
[347502965,1735887913975,-500.0,9.553e-05,2]
[347502966,1735887913998,-851.15,9.553e-05,2]
[347502967,1735887914028,-500.0,9.553e-05,2]
[347502968,1735887914062,-3557.91,9.553e-05,2]
[347502969,1735887914087,-500.0,9.553e-05,2]
[347502970,1735887914111,-500.0,9.553e-05,2]
[347502971,1735887914134,-500.0,9.553e-05,2]
[347502972,1735887914157,-500.0,9.553e-05,2]
[347502973,1735887914183,-500.0,9.553e-05,2]
[347502974,1735887914207,-500.0,9.553e-05,2]
[347502975,1735887914229,-500.0,9.553e-05,2]
[347502976,1735887914256,-500.0,9.553e-05,2]
[347502977,1735887914280,-500.0,9.553e-05,2]
[347502978,1735887914302,-660.88,9.553e-05,2]
[347502979,1735887914325,-248.64179788,9.553e-05,2]
[347502980,1735887914349,-565.59,9.553e-05,2]
[347502981,1735887914373,-1201.75,9.553e-05,2]
[347502982,1735887914397,-1643.97,9.553e-05,2]
[347502983,1735887914421,-1064.8,9.553e-05,2]
[347502984,1735887914446,-500.0,9.553e-05,2]
[347502985,1735887914472,-500.0,9.553e-05,2]
[347502986,1735887914496,-2343.83,9.553e-05,2]
[347502987,1735887914521,-500.0,9.553e-05,2]
[347502988,1735887914545,-638.60118802,9.553e-05,2]
[347502989,1735887914568,-626.91,9.553e-05,2]
[347502990,1735887914592,-500.0,9.553e-05,2]
[347502991,1735887914616,-730.87,9.553e-05,2]
[347502992,1735887914640,-618.89,9.553e-05,2]
[347502993,1735887914663,-520.03,9.553e-05,2]
[347502994,1735887914686,-500.0,9.553e-05,2]
[347502995,1735887914709,-500.0,9.553e-05,2]
[347502996,1735887914738,-500.0,9.553e-05,2]
[347502997,1735887914764,-500.0,9.553e-05,2]
[347502998,1735887914790,-1373.07,9.553e-05,2]
[347502999,1735887914814,-500.0,9.553e-05,2]
[347503000,1735887914838,-500.0,9.553e-05,2]
[347503001,1735887914865,-500.0,9.553e-05,2]
[347503002,1735887914888,-500.0,9.553e-05,2]
[347503003,1735887914914,-1024.89,9.553e-05,2]
[347503004,1735887914938,-4023.4,9.553e-05,2]
[347503005,1735887914963,-500.0,9.553e-05,2]
[347503006,1735887914987,-500.0,9.553e-05,2]
[347503007,1735887915014,-900.23,9.553e-05,2]
[347503008,1735887915038,-1822.29,9.553e-05,2]
[347503009,1735887915064,-500.0,9.553e-05,2]
[347503010,1735887915089,-500.0,9.553e-05,2]
[347503011,1735887915112,-500.0,9.553e-05,2]
[347503012,1735887915136,-1727.43,9.553e-05,2]
[347503013,1735887915164,-778.11,9.553e-05,2]
[347503014,1735887915190,-500.0,9.553e-05,2]
[347503015,1735887915217,-500.0,9.553e-05,2]
[347503016,1735887915243,-500.0,9.553e-05,2]
[347503017,1735887915272,-500.0,9.553e-05,2]
[347503018,1735887915296,-500.0,9.553e-05,2]
[347503019,1735887915326,-500.0,9.553e-05,2]
[347503020,1735887915350,-500.0,9.553e-05,2]
[347503021,1735887915373,-500.0,9.553e-05,2]
[347503022,1735887915397,-500.0,9.553e-05,2]
[347503023,1735887915422,-1808.43,9.553e-05,2]
[347503024,1735887915446,-500.0,9.553e-05,2]
[347503025,1735887915471,-500.0,9.553e-05,2]
[347503026,1735887915496,-500.0,9.553e-05,2]
[347503027,1735887915523,-500.0,9.553e-05,2]
[347503028,1735887915548,-500.0,9.553e-05,2]
[347503029,1735887915572,-500.0,9.553e-05,2]
[347503030,1735887915597,-500.0,9.553e-05,2]
[347503031,1735887915622,-1472.36,9.553e-05,2]
[347503032,1735887915647,-4577.89,9.553e-05,2]
[347503033,1735887915670,-574.62,9.553e-05,2]
[347503034,1735887915694,-500.0,9.553e-05,2]
[347503035,1735887915718,-500.0,9.553e-05,2]
[347503036,1735887915742,-500.0,9.553e-05,2]
[347503037,1735887915769,-701.81,9.553e-05,2]
[347503038,1735887915792,-500.0,9.553e-05,2]
[347503039,1735887915821,-500.0,9.553e-05,2]
[347503040,1735887915847,-676.78,9.553e-05,2]
[347503041,1735887915872,-500.0,9.553e-05,2]
[347503042,1735887915897,-500.0,9.553e-05,2]
[347503043,1735887915921,-500.0,9.553e-05,2]
[347503044,1735887915945,-500.0,9.553e-05,2]
[347503045,1735887915968,-500.0,9.553e-05,2]
[347503046,1735887915992,-500.0,9.553e-05,2]
[347503047,1735887916018,-1535.02,9.553e-05,2]
[347503048,1735887916043,-500.0,9.553e-05,2]
[347503049,1735887916067,-500.0,9.553e-05,2]
[347503050,1735887916091,-500.0,9.553e-05,2]
[347503051,1735887916116,-561.56,9.553e-05,2]
[347503052,1735887916141,-500.0,9.553e-05,2]
[347503053,1735887916166,-500.0,9.553e-05,2]
[347503054,1735887916189,-500.0,9.553e-05,2]
[347503055,1735887916212,-500.0,9.553e-05,2]
[347503056,1735887916237,-1380.43,9.553e-05,2]
[347503057,1735887916260,-500.0,9.553e-05,2]
[347503058,1735887916284,-500.0,9.553e-05,2]
[347503059,1735887916318,-1053.7,9.553e-05,2]
[347503060,1735887916345,-1528.95,9.553e-05,2]
[347503061,1735887916369,-991.64,9.553e-05,2]
[347503062,1735887916394,-1938.74,9.553e-05,2]
[347503063,1735887916418,-3627.12,9.553e-05,2]
[347503064,1735887916444,-500.0,9.553e-05,2]
[347503065,1735887916469,-579.64786508,9.553e-05,2]
[347503066,1735887916494,-1616.41,9.553e-05,2]